lending/lending_fUSD_20260102
["ID","MTS","AMOUNT","RATE_DAILY","PERIOD"]
[400332207,1767381089331,-372.46626431,0.00024769,2]
[400332208,1767381089368,-736.16908552,0.00024769,2]
[400332209,1767381089400,-512.84558601,0.00024769,2]
[400332210,1767381089435,-736.16908552,0.00024769,2]
[400332211,1767381089467,-736.16908552,0.00024769,2]
[400332212,1767381089498,-736.16908552,0.00024769,2]
[400332213,1767381089529,-736.16908552,0.00024769,2]
[400332214,1767381089560,-131.52635864,0.00024769,2]
[400332215,1767381092557,-604.64272688,0.00024769,2]
[400332216,1767381092591,-736.16908552,0.00024769,2]
[400332217,1767381092626,-736.16908552,0.00024769,2]
[400332218,1767381092658,-736.16908552,0.00024769,2]
[400332219,1767381092690,-736.16908552,0.00024769,2]
[400332220,1767381092721,-736.16908552,0.00024769,2]
[400332221,1767381092756,-692.86460552,0.00024769,2]
[400332222,1767381093538,-43.30448,0.00024769,2]
[400332223,1767381093565,-168.01788673,0.00024769,2]
[400332224,1767381095111,-289.77835118,0.00024283,6]
[400332225,1767381097144,-223.0315306,0.00024283,6]
[400332226,1767381098930,-2391.53211822,0.00024283,6]
[400332227,1767381098960,-162.791,0.00024283,6]
[400332228,1767381098994,-568.15119879,0.00024769,2]
[400332229,1767381099026,-736.16908552,0.00024769,2]
[400332230,1767381099060,-736.16908552,0.00024769,2]
[400332231,1767381099093,-74.21593838,0.00024769,2]
[400332232,1767381099239,-200.0,0.00024769,2]
[400332233,1767381102017,-249.982578,0.00024769,2]
[400332234,1767381104113,-211.97056914,0.00024769,2]
[400332235,1767381104138,-36.3836919,0.00024769,2]
[400332236,1767381105447,-699.78539362,0.00024769,2]
[400332237,1767381105479,-736.16908552,0.00024769,2]
[400332238,1767381105511,-736.16908552,0.00024769,2]
[400332239,1767381105542,-736.16908552,0.00024769,2]
[400332240,1767381105575,-736.16908552,0.00024769,2]
[400332241,1767381105606,-736.16908552,0.00024769,2]
[400332242,1767381105654,-502.57927204,0.00024769,2]
[400332243,1767381106365,-229.12794443,0.00024769,2]
[400332244,1767381108766,-4.46186905,0.00024769,2]
[400332245,1767381108799,-736.16908552,0.00024769,2]
[400332246,1767381111342,-198.62203879,0.00024779,2]
[400332247,1767381114030,5568.93786894,0.00024679,2]
[400332248,1767381120584,-300.0,0.00024779,2]
[400332249,1767381122721,-231.55522864,0.00024679,2]
[400332250,1767381124243,-122.98762084,0.00024679,2]
[400332251,1767381124265,-124.59846774,0.00024778,2]
[400332252,1767381125691,-175.40153226,0.00024778,2]
[400332253,1767381125715,-54.01536743,0.00024778,2]
[400332254,1767381129764,-250.0,0.00024729,2]
[400332255,1767381129788,-105.92758402,0.00024778,2]
[400332256,1767381131838,-226.57934152,0.00024778,2]
[400332257,1767381133220,-168.47770703,0.00024778,2]
[400332258,1767381133246,-0.61809027,0.00024778,2]
[400332259,1767381134771,-203.86,0.00024778,2]
[400332260,1767381136786,-95.52190973,0.00024778,2]
[400332261,1767381138583,-186.43058011,0.00024779,2]
[400332262,1767381140075,-369.83616191,0.00024779,2]
[400332263,1767381143282,-218.10345719,0.00024779,2]
[400332264,1767381143314,245.20272775,0.00024769,2]
[400332265,1767381146566,-227.98208343,0.00024779,2]
[400332266,1767381148331,-300.0,0.00024779,2]
[400332267,1767381150538,-168.42970965,0.00024779,2]
[400332268,1767381153537,-171.15624172,0.00024779,2]
[400332269,1767381156390,-171.71890271,0.00024779,2]
[400332270,1767381157803,-175.13436172,0.00024778,2]
[400332271,1767381159358,-75.89176223,0.00024778,2]
[400332272,1767381159382,-132.70320127,0.00024778,2]
[400332273,1767381161996,-168.32198253,0.00024778,2]
[400332274,1767381165663,-198.9748162,0.00024778,2]
[400332275,1767381165687,-17.66939908,0.00024778,2]
[400332276,1767381167820,-208.2668177,0.00024778,2]
[400332277,1767381167842,-49.36025762,0.00024778,2]
[400332278,1767381168018,-485.35061123,0.00024778,2]
[400332279,1767381168048,-531.78246737,0.00024778,2]
[400332280,1767381168076,-500.0,0.00024778,2]
[400332281,1767381168105,-500.0,0.00024778,2]
[400332282,1767381169391,-361.80268287,0.00024779,2]
[400332283,1767381170883,-417.26014263,0.00024779,2]
[400332284,1767381172276,-157.65642569,0.00024779,2]
[400332285,1767381172495,795.19361584,0.00024679,2]
[400332286,1767381172696,500.0,0.00024679,2]
[400332287,1767381174150,4670.55022696,0.00024706,2]
[400332288,1767381174736,-614.24729515,0.00024706,2]
[400332289,1767381176237,-238.25944554,0.00024706,2]
[400332290,1767381180234,-614.65815078,0.00024706,2]
[400332291,1767381182580,427.36,0.00013699,2]
[400332292,1767381182715,-164.77834246,0.00024706,2]
[400332293,1767381183900,-427.36,0.00020187,2]
[400332294,1767381183998,250.0,0.00022206,2]
[400332295,1767381184124,-224.98848957,0.00024706,2]
[400332296,1767381189975,-328.45095681,0.00024706,2]
[400332297,1767381192051,-182.06787261,0.00024706,2]
[400332298,1767381197547,-184.47066003,0.00024705,2]
[400332299,1767381199008,-177.00021117,0.00024705,2]
[400332300,1767381205773,-227.8621712,0.00024705,2]
[400332301,1767381209132,-192.99831103,0.00024705,2]
[400332302,1767381210530,-417.66864657,0.00024705,2]
[400332303,1767381210730,-271.67617861,0.00024706,2]
[400332304,1767381212089,-634.29628438,0.00024706,2]
[400332305,1767381213521,-248.22109801,0.00024706,2]
[400332306,1767381216405,-184.63920597,0.00024706,2]
[400332307,1767381217936,-250.0,0.00024595,2]
[400332308,1767381220586,-335.22943184,0.00024595,2]
[400332309,1767381223886,-315.51067724,0.00024595,2]
[400332310,1767381228494,-257.45117937,0.00024595,2]
[400332311,1767381230050,-199.20422336,0.00024595,2]
[400332312,1767381233286,-205.21687214,0.00024595,2]
[400332313,1767381283770,151.0,0.00021951,2]
[400332314,1767381284232,151.0,0.00021951,2]
[400332315,1767381300145,151.0,0.00021983,2]
[400332316,1767381300344,151.0,0.00021983,2]
[400332317,1767381368983,151.0,0.00042954,50]
[400332318,1767381369268,151.0,0.00042954,50]
[400332319,1767381369544,151.0,0.00042954,50]
[400332320,1767381369827,151.0,0.00042954,50]
[400332321,1767381370150,151.0,0.00042954,50]
[400332322,1767381370444,151.0,0.00042954,50]
[400332323,1767381371009,151.0,0.00042954,50]
[400332324,1767381371050,151.0,0.00042954,50]
[400332325,1767381371326,151.0,0.00042954,50]
[400332326,1767381371622,151.0,0.00042954,50]
[400332327,1767381371911,151.0,0.00042954,50]
[400332328,1767381372202,151.0,0.00042954,50]
[400332329,1767381372614,151.0,0.00042954,50]
[400332330,1767381373201,151.0,0.00042954,50]
[400332331,1767381373493,151.0,0.00042954,50]
[400332332,1767381373783,151.0,0.00042954,50]
[400332333,1767381374086,189.224024,0.00042954,50]
[400332334,1767381404257,151.0,0.00042954,50]
[400332335,1767381404544,155.121776,0.00042954,50]
[400332336,1767381426348,151.0,0.00042954,50]
[400332337,1767381426676,151.0,0.00042954,50]
[400332338,1767381426950,151.0,0.00042954,50]
[400332339,1767381427233,151.0,0.00042954,50]
[400332340,1767381427525,151.0,0.00042954,50]
[400332341,1767381427826,151.0,0.00042954,50]
[400332342,1767381444269,151.0,0.00042954,50]
[400332343,1767381444546,151.0,0.00042954,50]
[400332344,1767381445144,151.0,0.00042954,50]
[400332345,1767381445437,151.0,0.00042954,50]
[400332346,1767381445750,151.0,0.00042954,50]
[400332347,1767381446042,151.0,0.00042954,50]
[400332348,1767381446328,151.0,0.00042954,50]
[400332349,1767381446634,151.0,0.00042954,50]
[400332350,1767381446916,151.0,0.00042954,50]
[400332351,1767381447203,151.0,0.00042954,50]
[400332352,1767381447506,151.0,0.00042954,50]
[400332353,1767381447807,167.817928,0.00042954,50]
[400332354,1767381449534,231.76259702,0.00042954,120]
[400332355,1767381456153,151.0,0.00042954,50]
[400332356,1767381456449,151.0,0.00042954,50]
[400332357,1767381456740,151.0,0.00042954,50]
[400332358,1767381457051,151.0,0.00042954,50]
[400332359,1767381457340,151.0,0.00042954,50]
[400332360,1767381457622,151.0,0.00042954,50]
[400332361,1767381457913,151.0,0.00042954,50]
[400332362,1767381458720,151.0,0.00042954,50]
[400332363,1767381458993,151.0,0.00042954,50]
[400332364,1767381459298,151.0,0.00042954,50]
[400332365,1767381459577,151.0,0.00042954,50]
[400332366,1767381459905,151.0,0.00042954,50]
[400332367,1767381460296,151.0,0.00042954,50]
[400332368,1767381460577,236.88766,0.00042954,50]
[400332369,1767381475202,250.0,0.00017,2]
[400332370,1767381477527,300.0,0.00019,2]
[400332371,1767381478597,350.0,0.00021,2]
[400332372,1767381479766,400.0,0.00023,2]
[400332373,1767381487151,500.0,0.00029358,120]
[400332374,1767381512487,5735.288542,0.0004296,50]
[400332375,1767381512764,5735.288542,0.0004296,50]
[400332376,1767381513065,5735.288542,0.0004296,50]
[400332377,1767381513351,5735.288542,0.0004296,50]
[400332378,1767381513680,5735.288542,0.0004296,50]
[400332379,1767381513990,5735.288542,0.0004296,50]
[400332380,1767381514264,5735.288542,0.0004296,50]
[400332381,1767381514555,5735.288542,0.0004296,50]
[400332382,1767381514838,5735.288542,0.0004296,50]
[400332383,1767381515145,5735.288542,0.0004296,50]
[400332384,1767381515457,5735.288542,0.0004296,50]
[400332385,1767381515745,5735.288542,0.0004296,50]
[400332386,1767381516028,5735.288542,0.0004296,50]
[400332387,1767381516580,5735.288542,0.0004296,50]
[400332388,1767381517194,5735.288542,0.0004296,50]
[400332389,1767381517489,5735.288542,0.0004296,50]
[400332390,1767381517778,5735.288542,0.0004296,50]
[400332391,1767381518075,5735.288542,0.0004296,50]
[400332392,1767381518360,5735.288542,0.0004296,50]
[400332393,1767381518663,5735.28854206,0.0004296,50]
[400332394,1767381608446,151.0,0.0004296,50]
[400332395,1767381609067,151.0,0.0004296,50]
[400332396,1767381609424,151.0,0.0004296,50]
[400332397,1767381609753,151.0,0.0004296,50]
[400332398,1767381610059,151.0,0.0004296,50]
[400332399,1767381610435,151.0,0.0004296,50]
[400332400,1767381610639,151.0,0.0004296,50]
[400332401,1767381610930,151.0,0.0004296,50]
[400332402,1767381629300,185.046945,0.0004296,50]
[400332403,1767381635010,151.0,0.0004296,50]
[400332404,1767381639226,151.0,0.0004296,50]
[400332405,1767381639523,151.0,0.0004296,50]
[400332406,1767381639811,151.0,0.0004296,50]
[400332407,1767381640097,151.0,0.0004296,50]
[400332408,1767381640403,151.0,0.0004296,50]
[400332409,1767381640733,151.0,0.0004296,50]
[400332410,1767381668756,500.0,0.0004296,30]
[400332411,1767381692087,-2057.39,0.00024121,2]
[400332412,1767381692205,151.0,0.0004296,50]
[400332413,1767381692416,151.0,0.0004296,50]
[400332414,1767381800824,7226.3,0.00024046,2]
[400332415,1767381831484,-287.33235301,0.0002427,2]
[400332416,1767381838469,-203.47415908,0.0002427,2]
[400332417,1767381840358,-264.31997141,0.0002427,2]
[400332418,1767381856052,2773.71,0.00023797,2]
[400332419,1767381856074,10000.01,0.00023797,2]
[400332420,1767381856094,909.43,0.00023797,2]
[400332421,1767381871722,257.36,0.00021796,2]
[400332422,1767381872663,151.0,0.00021796,2]
[400332423,1767381908570,10000.01,0.00018,2]
[400332424,1767381908600,10000.01,0.00018,2]
[400332425,1767381908627,10000.01,0.00018,2]
[400332426,1767381908654,10000.01,0.00018,2]
[400332427,1767381908679,10000.01,0.00018,2]
[400332428,1767381908705,10000.01,0.00018,2]
[400332429,1767381908731,10000.01,0.00018,2]
[400332430,1767381908756,10000.01,0.00018,2]
[400332431,1767381909338,-207.30157629,0.00018,2]
[400332432,1767381911576,-342.9528579,0.00018,2]
[400332433,1767381913234,-292.56133151,0.00018,2]
[400332434,1767381915312,-255.0,0.00018,2]
[400332435,1767381916799,-171.52941078,0.00018,2]
[400332436,1767381920485,-302.53539732,0.00018,2]
[400332437,1767381924949,-236.00361132,0.00018,2]
[400332438,1767381926719,-152.7266571,0.0001791,2]
[400332439,1767381928311,-252.27176357,0.0001791,2]
[400332440,1767381929677,2096.0,0.00032877,120]
[400332441,1767381930006,96619.24406123,0.00016,2]
[400332442,1767381933196,-272.83521507,0.0001791,2]
[400332443,1767381934771,-346.12811324,0.0001791,2]
[400332444,1767381935191,297.144959,0.00042961,50]
[400332445,1767381935486,297.144959,0.00042961,50]
[400332446,1767381935784,297.144959,0.00042961,50]
[400332447,1767381936073,297.144959,0.00042961,50]
[400332448,1767381936395,297.144959,0.00042961,50]
[400332449,1767381936702,297.144959,0.00042961,50]
[400332450,1767381937708,297.144959,0.00042961,50]
[400332451,1767381938041,297.144959,0.00042961,50]
[400332452,1767381938333,297.144959,0.00042961,50]
[400332453,1767381938569,-110.78496902,0.0001791,2]
[400332454,1767381938598,-133.67428395,0.00018,2]
[400332455,1767381938633,297.144959,0.00042961,50]
[400332456,1767381938920,297.144959,0.00042961,50]
[400332457,1767381939217,297.144959,0.00042961,50]
[400332458,1767381939558,297.144959,0.00042961,50]
[400332459,1767381939841,297.144959,0.00042961,50]
[400332460,1767381940135,297.144959,0.00042961,50]
[400332461,1767381940166,-464.24425929,0.00018,2]
[400332462,1767381940551,297.144959,0.00042961,50]
[400332463,1767381940843,297.144959,0.00042961,50]
[400332464,1767381941131,297.144959,0.00042961,50]
[400332465,1767381941419,297.144959,0.00042961,50]
[400332466,1767381941715,297.144958,0.00042961,50]
[400332467,1767381942268,-159.31640209,0.00018,2]
[400332468,1767381944086,-272.64371643,0.00018,2]
[400332469,1767381949379,-220.76140148,0.00018,2]
[400332470,1767381950898,-186.35240868,0.00018,2]
[400332471,1767381952385,-175.92842549,0.00018,2]
[400332472,1767381952932,-8265.29191301,0.00018,2]
[400332473,1767381953044,-10000.01,0.00018,2]
[400332474,1767381953166,-10000.01,0.00018,2]
[400332475,1767381953324,-10000.01,0.00018,2]
[400332476,1767381953440,-10000.01,0.00018,2]
[400332477,1767381953552,-10000.01,0.00018,2]
[400332478,1767381953656,-10000.01,0.00018,2]
[400332479,1767381955835,-10000.01,0.00018,2]
[400332480,1767381955939,-10000.01,0.00018,2]
[400332481,1767381957032,-309.64564772,0.00018,2]
[400332483,1767381959847,-165.49172382,0.00018,2]
[400332484,1767381964353,556.97277208,0.00016973,2]
[400332485,1767381964555,7179.0286601,0.00011,2]
[400332486,1767381965029,-180.32884553,0.00017999,2]
[400332487,1767381965991,500.0,0.00042961,50]
[400332488,1767381966094,500.0,0.00016973,2]
[400332489,1767381966229,500.0,0.00014773,2]
[400332490,1767381966260,1000.0,0.00015321,2]
[400332491,1767381966304,500.0,0.00016973,2]
[400332492,1767381966338,151.0,0.00042961,50]
[400332493,1767381966368,1500.0,0.00015868,2]
[400332494,1767381966408,2000.0,0.00016416,2]
[400332495,1767381966441,2500.0,0.00016964,2]
[400332496,1767381966499,500.0,0.00016973,2]
[400332497,1767381966606,500.0,0.00042961,50]
[400332498,1767381966661,500.0,0.00016973,2]
[400332499,1767381966696,500.70322768,0.00016973,2]
[400332500,1767381966727,500.0,0.00016973,2]
[400332501,1767381966777,501.35455747,0.00016973,2]
[400332502,1767381966819,640.62465528,0.00016973,2]
[400332503,1767381966915,151.0,0.00042961,50]
[400332504,1767381967245,500.0,0.00042961,50]
[400332505,1767381967525,151.0,0.00042961,50]
[400332506,1767381967861,3408.082903,7.945e-05,2]
[400332507,1767381967898,500.0,0.00042961,50]
[400332508,1767381968105,250.0,0.00042961,50]
[400332509,1767381968141,250.0,0.00042961,50]
[400332510,1767381968177,151.0,0.00042961,50]
[400332511,1767381968432,-343.0347923,0.00017512,2]
[400332512,1767381968469,500.0,0.00042961,50]
[400332513,1767381968702,250.0,0.00042961,50]
[400332514,1767381968743,151.0,0.00042961,50]
[400332515,1767381968779,250.0,0.00042961,50]
[400332516,1767381969079,500.0,0.00042961,50]
[400332517,1767381969301,250.0,0.00042961,50]
[400332518,1767381969378,250.0,0.00042961,50]
[400332519,1767381969411,151.0,0.00042961,50]
[400332520,1767381969691,500.0,0.00042961,50]
[400332521,1767381969952,250.0,0.00042961,50]
[400332522,1767381969987,250.0,0.00042961,50]
[400332523,1767381970027,151.0,0.00042961,50]
[400332524,1767381970556,500.0,0.00042961,50]
[400332525,1767381970637,250.0,0.00042961,50]
[400332526,1767381970674,151.0,0.00042961,50]
[400332527,1767381971259,151.0,0.00042961,50]
[400332528,1767381971420,250.0,0.00042961,50]
[400332529,1767381971627,500.0,0.00042961,50]
[400332530,1767381971868,151.0,0.00042961,50]
[400332531,1767381972041,250.0,0.00042961,50]
[400332532,1767381972253,500.0,0.00042961,50]
[400332533,1767381972477,151.0,0.00042961,50]
[400332534,1767381972629,250.0,0.00042961,50]
[400332535,1767381972856,500.0,0.00042961,50]
[400332536,1767381973219,250.0,0.00042961,50]
[400332537,1767381973313,-202.2247571,0.00017512,2]
[400332538,1767381973466,500.0,0.00042961,50]
[400332539,1767381973940,250.0,0.00042961,50]
[400332540,1767381974069,500.0,0.00042961,50]
[400332541,1767381974592,250.0,0.00042961,50]
[400332542,1767381974703,500.0,0.00042961,50]
[400332543,1767381975349,500.0,0.00042961,50]
[400332544,1767381975410,-166.03936823,0.00017512,2]
[400332545,1767381975950,500.0,0.00042961,50]
[400332546,1767381976542,500.0,0.00042961,50]
[400332547,1767381977037,-421.73063177,0.00017512,2]
[400332548,1767381977270,-911.81369819,0.00017512,2]
[400332549,1767381977299,-1000.0,0.00017521,2]
[400332550,1767381977329,-690.07045192,0.00017521,2]
[400332551,1767381977360,-1000.0,0.00017521,2]
[400332552,1767381977390,-1000.0,0.00017521,2]
[400332553,1767381977501,-1000.0,0.00017521,2]
[400332554,1767381977699,-594.2092946,0.000179,2]
[400332555,1767381977731,-119.67115447,0.00017999,2]
[400332556,1767381977802,-82.36125071,0.00018,2]
[400332557,1767381977828,-594.2092946,0.00018,2]
[400332558,1767381977860,-119.67115447,0.00018,2]
[400332559,1767381977874,-6572.24910186,0.00018,2]
[400332560,1767381977888,-10000.01,0.00018,2]
[400332561,1767381977914,-10000.01,0.00018,2]
[400332562,1767381977931,-10000.01,0.00018,2]
[400332563,1767381981045,-266.50708799,0.00018,2]
[400332564,1767381983862,-177.02627375,0.00018,2]
[400332565,1767381989879,-239.92526043,0.00018,2]
[400332566,1767381991986,-174.72569709,0.00018,2]
[400332567,1767381995700,-10000.01,0.00018,2]
[400332568,1767381995816,-10000.01,0.00018,2]
[400332569,1767381995943,-10000.01,0.00018,2]
[400332570,1767381997619,-325.57199103,0.00018,2]
[400332571,1767382000246,-151.03,0.00018,2]
[400332572,1767382003389,884.01,0.00042961,30]
[400332573,1767382004078,-174.64776622,0.00018,2]
[400332574,1767382005813,-198.02330436,0.00018,2]
[400332575,1767382007345,-255.0,0.00018,2]
[400332576,1767382008158,-10000.01,0.00018,2]
[400332577,1767382008288,-10000.01,0.00018,2]
[400332578,1767382008391,-10000.01,0.00018,2]
[400332579,1767382008513,-10000.01,0.00018,2]
[400332580,1767382008639,-10000.01,0.00018,2]
[400332581,1767382008799,-10000.01,0.00018,2]
[400332582,1767382008929,-10000.01,0.00018,2]
[400332583,1767382009126,1303.56,0.00042961,30]
[400332584,1767382014508,-218.69480128,0.00018,2]
[400332585,1767382017135,-296.46383651,0.00018,2]
[400332586,1767382021396,-173.10566553,0.00018,2]
[400332587,1767382023194,500.0,0.00016973,2]
[400332588,1767382023313,500.23295906,0.00016973,2]
[400332589,1767382023343,500.0,0.00016973,2]
[400332590,1767382023457,500.0,0.00016973,2]
[400332591,1767382024537,-1000.0,0.00017521,2]
[400332592,1767382024561,-246.23321181,0.00017521,2]
[400332594,1767382025009,475.32771684,0.00042961,50]
[400332595,1767382025048,238.38323648,0.00042961,50]
[400332596,1767382026215,510.06261073,0.00016973,2]
[400332597,1767382026883,502.05961414,0.00016973,2]
[400332598,1767382028359,5665.757066,7.945e-05,2]
[400332599,1767382029946,375.03946125,0.00016973,2]
[400332600,1767382030364,-158.06859676,0.00017521,2]
[400332601,1767382031569,500.57762075,0.00016973,2]
[400332602,1767382032606,-238.0,0.00017521,2]
[400332603,1767382033507,446.28066807,0.00016973,2]
[400332604,1767382033538,54.54757061,0.00016973,2]
[400332605,1767382033700,220.67583923,0.00016973,2]
[400332606,1767382034693,-217.57605846,0.00017521,2]
[400332607,1767382034901,500.0,0.00016973,2]
[400332608,1767382035256,500.0,0.00016973,2]
[400332609,1767382035286,167.22314625,0.00016973,2]
[400332610,1767382035531,366.84006854,0.0001305,2]
[400332611,1767382035967,500.0,0.00016973,2]
[400332612,1767382035995,259.29175705,0.000101,2]
[400332613,1767382036319,-140.12213297,0.00017521,2]
[400332614,1767382036342,-126.5598662,0.00017521,2]
[400332615,1767382040084,-168.38338512,0.00017521,2]
[400332616,1767382045084,500.0,0.00016973,2]
[400332617,1767382045270,500.0,0.00016973,2]
[400332618,1767382045298,-236.0,0.00017521,2]
[400332619,1767382047251,-300.0,0.00017521,2]
[400332620,1767382049461,-169.05674868,0.00017521,2]
[400332621,1767382049485,-500.78118769,0.00017521,2]
[400332622,1767382049507,-262.9670565,0.00017521,2]
[400332623,1767382051584,-160.71407549,0.00017521,2]
[400332624,1767382053185,-253.15861808,0.00017521,2]
[400332625,1767382054902,-324.36969235,0.00017521,2]
[400332626,1767382054927,-17.24785123,0.00017521,2]
[400332627,1767382056901,-237.68370971,0.00017521,2]
[400332628,1767382058540,-216.23524429,0.00017521,2]
[400332629,1767382060564,-29.66254219,0.00017521,2]
[400332630,1767382060588,-275.12436298,0.00017521,2]
[400332631,1767382062865,-531.82285602,0.00017433,2]
[400332632,1767382064719,-157.07740716,0.00017433,2]
[400332633,1767382069115,-287.24127558,0.00017433,2]
[400332634,1767382071288,-170.87836276,0.00017433,2]
[400332635,1767382072837,-536.770178,0.00017433,2]
[400332636,1767382077106,-198.16501142,0.00017433,2]
[400332637,1767382078803,-227.40672175,0.00017433,2]
[400332638,1767382080357,-357.26369565,0.00017433,2]
[400332639,1767382084290,550.00207661,0.00016973,2]
[400332640,1767382084322,500.0,0.00016973,2]
[400332641,1767382085029,500.0,0.00016973,2]
[400332642,1767382085255,156.81454078,0.00016973,2]
[400332643,1767382085285,571.31925921,0.00016973,2]
[400332644,1767382085313,-367.94958697,0.00017433,2]
[400332645,1767382086086,160.47738895,0.00016973,2]
[400332646,1767382086306,160.47895706,0.00016973,2]
[400332647,1767382086431,-1354.77048269,0.00017433,2]
[400332648,1767382086463,-724.87563702,0.00017521,2]
[400332649,1767382086492,-242.19752844,0.00017521,2]
[400332650,1767382086520,-1000.0,0.00017521,2]
[400332651,1767382086549,-1000.0,0.00017521,2]
[400332652,1767382086580,-417.38312352,0.00017968,2]
[400332653,1767382086609,-150.0,0.00017973,2]
[400332654,1767382086882,-300.0,0.00017989,2]
[400332655,1767382087288,160.4513365,0.00016973,2]
[400332656,1767382087476,500.0,0.00016973,2]
[400332657,1767382087506,160.42376798,0.00016973,2]
[400332658,1767382087856,500.0,0.00016973,2]
[400332659,1767382089477,-590.0461331,0.00017521,2]
[400332660,1767382089507,-909.68489216,0.00017521,2]
[400332661,1767382089640,-4053.52602446,0.0001799,2]
[400332662,1767382090276,-170.9044356,0.0001799,2]
[400332663,1767382092320,-190.57652755,0.0001799,2]
[400332664,1767382092709,-10000.01,0.0001799,2]
[400332665,1767382093862,-259.36606633,0.00017989,2]
[400332666,1767382095750,-940.63393367,0.00017989,2]
[400332667,1767382095781,-2676.85299632,0.0001799,2]
[400332668,1767382095816,-2765.03614002,0.0001799,2]
[400332669,1767382095912,-487.81479577,0.00017999,2]
[400332671,1767382100946,-239.82241935,0.0001799,2]
[400332672,1767382103062,-412.29400612,0.0001799,2]
[400332673,1767382105940,-163.58398172,0.0001799,2]
[400332674,1767382109875,-172.16790242,0.0001799,2]
[400332675,1767382111467,-417.33616778,0.0001799,2]
[400332676,1767382117445,-227.14528256,0.0001799,2]
[400332677,1767382119048,-300.0,0.0001799,2]
[400332678,1767382124687,-398.36875494,0.0001799,2]
[400332679,1767382127449,-233.76509833,0.0001799,2]
[400332680,1767382130194,-202.49420278,0.0001799,2]
[400332681,1767382130223,-12.18520423,0.00017999,2]
[400332682,1767382130252,-550.0,0.00017999,2]
[400332683,1767382132843,-158.15535175,0.00017999,2]
[400332684,1767382132865,-159.77664951,0.00017999,2]
[400332685,1767382135021,-211.20615846,0.00017999,2]
[400332686,1767382138239,499.20328942,0.00017899,2]
[400332687,1767382139783,500.0,0.00017999,2]
[400332688,1767382140680,-129.01719203,0.00017999,2]
[400332689,1767382140706,-24.70280797,0.00017999,2]
[400332690,1767382142194,-322.47666049,0.00017999,2]
[400332691,1767382144137,500.0,0.00016973,2]
[400332692,1767382144166,500.18953013,0.00016973,2]
[400332693,1767382144192,500.09823311,0.00016973,2]
[400332694,1767382144220,277.30589861,0.00016973,2]
[400332695,1767382144247,375.58700651,0.00017521,2]
[400332696,1767382144273,162.55881328,0.00016973,2]
[400332697,1767382144300,499.2032894,0.000179,2]
[400332698,1767382145881,-27.11813974,0.00017999,2]
[400332699,1767382145905,-149.7712998,0.00017999,2]
[400332700,1767382147928,500.0,0.00016973,2]
[400332701,1767382148003,500.0,0.00017521,2]
[400332702,1767382149071,-25.94698696,0.00017999,2]
[400332703,1767382149094,-201.2763099,0.00017999,2]
[400332704,1767382150228,499.2032894,0.000179,2]
[400332705,1767382150545,207.8498846,0.00016973,2]
[400332706,1767382150572,163.7038497,0.00017973,2]
[400332707,1767382152332,-196.34804293,0.00017999,2]
[400332708,1767382155083,-102.37564717,0.00017999,2]
[400332709,1767382155125,-109.76075455,0.00017999,2]